Workbook

Sheet Cover

Sheet Parameters
C2: Parameters for deriving performance requirements
C3: Ideal Span Threshold | D3: 2 | E3: dB
C4: Impairment Span Threshold | D4: 4 | E4: dB
B7: Notes | C7: 1. Call function DerivingPerfReq()
C8: 2. If the ruls does not apply, or fails, -100dB or less will be returned
D9: -100 | E9: Not enough input
D10: -101 | E10: Input should be pairs
D11: -102 | E11: Too large span for impairment
D12: -103 | E12: After removal iteration, not enough input

Sheet FR1 PUSCH high reliability
A1: Test | B1: Duplex mode | C1: Aggregation factor | D1: waveform | E1: MCS level | F1: Tx/Rx | G1: Propagation condition | H1: DMRS | I1: SCS | J1: BW | K1: PUSCH mapping type | L1: 38.104 req | M1: 38.141 req | N1: Samsung | P1: Intel | R1: Nokia | T1: Huawei | V1: Ericsson | X1: SPAN | Z1: AVERAGE
N2: Ideal | O2: Impairment | P2: Ideal | Q2: Impairment | R2: Ideal | S2: Impairment | T2: Ideal | U2: Impairment | V2: Ideal | W2: Impairment | X2: Ideal | Y2: Impairment | Z2: Ideal | AA2: Impairment
A3: Test 1.1 | B3: FDD | C3: n2 | D3: CP-OFDM | E3: Table 3, MCS5 | F3: 1T2R | G3: TDLB100-400 | H3: DMRS 1+1 | I3: 15kHz | J3: 5MHz | K3: type A | L3: =DerivingPerfReq(N3:W3) -> -8.4 | M3: =IF(L3>-100,L3+0.6,L3) -> -7.8 | N3: -11.3 | O3: -9.3 | P3: -12.1 | Q3: -10.6 | R3: -10 | S3: -7.5 | T3: -10.3 | U3: -8.3 | V3: -13.7 | W3: -11.7 | X3: =MAX(N3,P3,R3,T3,V3)-MIN(N3,P3,R3,T3,V3) -> 3.7 | Y3: =MAX(O3,Q3,S3,U3,W3)-MIN(O3,Q3,S3,U3,W3) -> 4.2 | Z3: =AVERAGE(N3,P3,R3,T3,V3) -> -11.48 | AA3: =AVERAGE(O3,Q3,S3,U3,W3) -> -9.48
K4: type B | L4: -8.2 | M4: -7.6 | N4: -11 | O4: -9 | P4: -12.1 | Q4: -10.6 | R4: -9.8 | S4: -7.3 | T4: -10.3 | U4: -8.3 | V4: -13.6 | W4: -11.6 | X4: =MAX(N4,P4,R4,T4,V4)-MIN(N4,P4,R4,T4,V4) -> 3.8 | Y4: =MAX(O4,Q4,S4,U4,W4)-MIN(O4,Q4,S4,U4,W4) -> 4.3 | Z4: =AVERAGE(N4,P4,R4,T4,V4) -> -11.36 | AA4: =AVERAGE(O4,Q4,S4,U4,W4) -> -9.36
J5: 10MHz | K5: type A | L5: -10.2 | M5: -9.6 | N5: -11.9 | O5: -9.9 | P5: -12.7 | Q5: -11.2 | R5: -10.2 | S5: -7.7 | T5: -11.5 | U5: -9.5 | V5: -14.4 | W5: -12.4 | X5: 4.2 | Y5: 4.7 | Z5: -12.14 | AA5: -10.14
K6: type B | L6: -10.1 | M6: -9.5 | N6: -11.8 | O6: -9.8 | P6: -12.6 | Q6: -11.1 | R6: -9.9 | S6: -7.4 | T6: -11.5 | U6: -9.5 | V6: -14.1 | W6: -12.1 | X6: 4.2 | Y6: 4.7 | Z6: -11.98 | AA6: -9.98
B7: TDD | C7: n8 | D7: CP-OFDM | E7: Table 3, MCS5 | F7: 1T2R | G7: TDLB100-400 | H7: DMRS 1+1 | J7: 5MHz | K7: type A | L7: -11 | M7: -10.4 | N7: -11.2 | O7: -9.2 | P7: -12.3 | Q7: -10.8 | R7: -12.9 | S7: -10.4 | T7: -10.2 | U7: -8.4 | V7: -13.9 | W7: -11.9 | X7: 3.7 | Y7: 3.5 | Z7: -12.1 | AA7: -10.14
K8: type B | L8: -10 | M8: -9.4 | N8: -10.9 | O8: -8.9 | P8: -12.3 | Q8: -10.8 | R8: -12.7 | S8: -10.2 | T8: -10.2 | U8: -8.4 | V8: -13.9 | W8: -11.9 | X8: 3.7 | Y8: 3.5 | Z8: -12 | AA8: -10.04
J9: 10MHz | K9: type A | L9: -10.7 | M9: -10.1 | N9: -11.8 | O9: -9.8 | P9: -13 | Q9: -11.5 | R9: -13.4 | S9: -10.9 | T9: -11.2 | U9: -9.2 | V9: -14.4 | W9: -12.4 | X9: 3.2 | Y9: 3.2 | Z9: -12.76 | AA9: -10.76
K10: type B | L10: -10.3 | M10: -9.7 | N10: -11.7 | O10: -9.7 | P10: -13 | Q10: -11.5 | R10: -13.2 | S10: -10.7 | T10: -11.2 | U10: -9.2 | V10: -14.4 | W10: -12.4 | X10: 3.2 | Y10: 3.2 | Z10: -12.7 | AA10: -10.7
A11: Test 1.2 | B11: FDD | C11: n2 | D11: CP-OFDM | E11: Table 3, MCS5 | F11: 1T2R | G11: TDLB100-400 | H11: DMRS 1+1 | I11: 30kHz | J11: 10MHz | K11: type A | L11: -10.8 | M11: =IF(L11>-100,L11+0.6,L11) -> -10.2 | N11: -12.2 | O11: -10.2 | P11: -12.9 | Q11: -11.4 | R11: -12.9 | S11: -10.4 | T11: -10.7 | U11: -8.7 | V11: -13.4 | W11: -11.4 | X11: 2.7 | Y11: 2.7 | Z11: -12.42 | AA11: -10.42
K12: type B | L12: -10.8 | M12: -10.2 | N12: -12.1 | O12: -10.1 | P12: -12.8 | Q12: -11.3 | R12: -12.9 | S12: -10.4 | T12: -10.7 | U12: -8.7 | V12: -13.4 | W12: -11.4 | X12: 2.7 | Y12: 2.7 | Z12: -12.38 | AA12: -10.38
J13: 40MHz | K13: type A | L13: -11.5 | M13: -10.9 | N13: -13 | O13: -11 | P13: -13.6 | Q13: -12.1 | R13: -13 | S13: -10.5 | T13: -11.5 | U13: -9.5 | V13: -14.3 | W13: -12.3 | X13: 2.8 | Y13: 2.8 | Z13: -13.08 | AA13: -11.08
K14: type B | L14: -11.4 | M14: -10.8 | N14: -12.9 | O14: -10.9 | P14: -13.6 | Q14: -12.1 | R14: -12.8 | S14: -10.3 | T14: -11.5 | U14: -9.5 | V14: -14.3 | W14: -12.3 | X14: 2.8 | Y14: 2.8 | Z14: -13.02 | AA14: -11.02
B15: TDD | C15: n2 | D15: CP-OFDM | E15: Table 3, MCS5 | F15: 1T2R | G15: TDLB100-400 | H15: DMRS 1+1 | J15: 10MHz | K15: type A | L15: -10.8 | M15: -10.2 | N15: -12.1 | O15: -10.1 | P15: -13.1 | Q15: -11.6 | R15: -12.8 | S15: -10.3 | T15: -10.9 | U15: -8.9 | V15: -13.4 | W15: -11.4 | X15: 2.5 | Y15: 2.7 | Z15: -12.46 | AA15: -10.46
K16: type B | L16: -10.9 | M16: -10.3 | N16: -12 | O16: -10 | P16: -13.1 | Q16: -11.6 | R16: -13 | S16: -10.5 | T16: -10.7 | U16: -8.7 | V16: -13.4 | W16: -11.4 | X16: 2.7 | Y16: 2.9 | Z16: -12.44 | AA16: -10.44
J17: 40MHz | K17: type A | L17: -11.5 | M17: =IF(L17>-100,L17+0.6,L17) -> -10.9 | N17: -12.9 | O17: -10.9 | P17: -13.8 | Q17: -12.3 | R17: -12.9 | S17: -10.4 | T17: -11.9 | U17: -9.9 | V17: -14.3 | W17: -12.3 | X17: 2.4 | Y17: 2.4 | Z17: -13.16 | AA17: -11.16
K18: type B | L18: -11.4 | M18: -10.8 | N18: -12.8 | O18: -10.8 | P18: -13.8 | Q18: -12.3 | R18: -12.9 | S18: -10.4 | T18: -11.8 | U18: -9.8 | V18: -14.3 | W18: -12.3 | X18: 2.5 | Y18: 2.5 | Z18: -13.12 | AA18: -11.12

Sheet FR1 PUSCH low latency
A1: Test | B1: Symbol length | C1: waveform | D1: Tx/Rx | E1: PUSCH mapping type | F1: MCS level | G1: Propagation condition | H1: DMRS | I1: SCS | J1: BW | K1: 38.104 req | L1: 38.141 req | M1: Samsung | O1: Intel | Q1: Nokia | S1: Huawei | U1: Ericsson | W1: SPAN | Y1: AVERAGE
M2: Ideal | N2: Impairment | O2: Ideal | P2: Impairment | Q2: Ideal | R2: Impairment | S2: Ideal | T2: Impairment | U2: Ideal | V2: Impairment | W2: Ideal | X2: Impairment | Y2: Ideal | Z2: Impairment
A3: Test 2.1 | B3: 2os | C3: CP-OFDM | D3: 1T2R | E3: type B | F3: Table 3, MCS10 | G3: TDLC300-100 | H3: DMRS 1+0 | I3: 15kHz | J3: 5MHz | K3: =DerivingPerfReq(M3:V3) -> 0.5 | L3: =IF(K3>-100,K3+0.6,K3) -> 1.1 | M3: -1.26 | N3: 0.74 | O3: -1.5 | P3: 0 | Q3: -1.7 | R3: 0.8 | S3: -1.5 | T3: 0.5 | U3: -1.6 | V3: 0.4 | W3: =MAX(M3,O3,Q3,S3,U3)-MIN(M3,O3,Q3,S3,U3) -> 0.44 | X3: =MAX(N3,P3,R3,T3,V3)-MIN(N3,P3,R3,T3,V3) -> 0.8 | Y3: =AVERAGE(M3,O3,Q3,S3,U3) -> -1.512 | Z3: =AVERAGE(N3,P3,R3,T3,V3) -> 0.488
J4: 10MHz | K4: =DerivingPerfReq(M4:V4) -> 0.3 | L4: =IF(K4>-100,K4+0.6,K4) -> 0.9 | M4: -1.71 | N4: 0.29 | O4: -2 | P4: 0.5 | Q4: -2.3 | R4: 0.2 | S4: -1.9 | T4: 0.1 | U4: -1.7 | V4: 0.3 | W4: =MAX(M4,O4,Q4,S4,U4)-MIN(M4,O4,Q4,S4,U4) -> 0.6 | X4: =MAX(N4,P4,R4,T4,V4)-MIN(N4,P4,R4,T4,V4) -> 0.4 | Y4: =AVERAGE(M4,O4,Q4,S4,U4) -> -1.922 | Z4: =AVERAGE(N4,P4,R4,T4,V4) -> 0.278
A5: Test 2.2 | B5: 2os | C5: CP-OFDM | D5: 1T2R | E5: type B | F5: Table 3, MCS10 | G5: TDLC300-100 | H5: DMRS 1+0 | I5: 30kHz | J5: 10MHz | K5: =DerivingPerfReq(M5:V5) -> 0.3 | L5: =IF(K5>-100,K5+0.6,K5) -> 0.9 | M5: -1.27 | N5: 0.73 | O5: -1.7 | P5: 0.2 | Q5: -1.8 | R5: 0.7 | S5: -2 | T5: 0 | U5: -1.9 | V5: 0.1 | W5: 0.73 | X5: 0.73 | Y5: -1.734 | Z5: 0.346
J6: 40MHz | K6: =DerivingPerfReq(M6:V6) -> 0 | L6: =IF(K6>-100,K6+0.6,K6) -> 0.6 | M6: -1.68 | N6: 0.32 | O6: -2 | P6: 0.5 | Q6: -2.5 | R6: 0 | S6: -2.8 | T6: -0.8 | U6: -2 | V6: 0 | W6: 1.12 | X6: 1.3 | Y6: -2.196 | Z6: 0.004

Sheet FR2 PUSCH high reliability
A1: Test | B1: Duplex mode | C1: Aggregation factor | D1: waveform | E1: MCS level | F1: Tx/Rx | G1: PUSCH mapping type | H1: SCS | I1: BW | J1: DMRS | K1: Propagation condition | L1: 38.104 req | M1: 38.141 req | N1: Samsung | P1: Intel | R1: Nokia | T1: Huawei | V1: Ericsson | X1: SPAN | Z1: AVERAGE
N2: Ideal | O2: Impairment | P2: Ideal | Q2: Impairment | R2: Ideal | S2: Impairment | T2: Ideal | U2: Impairment | V2: Ideal | W2: Impairment | X2: Ideal | Y2: Impairment | Z2: Ideal | AA2: Impairment
A3: Test 3.1 | B3: TDD | C3: n8 | D3: CP-OFDM | E3: Table 3,MCS5 | F3: 1T2R | G3: Type B | H3: 60 kHz | I3: 50 MHz | J3: DMRS 1+1 | K3: TDLA30-300 | L3: =DerivingPerfReq(N3:W3) -> -11.9 | M3: =IF(L3>-100,L3+0.6,L3) -> -11.3 | N3: -13.3 | O3: -11.3 | P3: -13.4 | Q3: -11.9 | R3: -11.6 | S3: -9.1 | T3: -14.1 | U3: -12.1 | V3: -14.3 | W3: -12.3 | X3: =MAX(N3,P3,R3,T3,V3)-MIN(N3,P3,R3,T3,V3) -> 2.7 | Y3: =MAX(O3,Q3,S3,U3,W3)-MIN(O3,Q3,S3,U3,W3) -> 3.2 | Z3: =AVERAGE(N3,P3,R3,T3,V3) -> -13.34 | AA3: =AVERAGE(O3,Q3,S3,U3,W3) -> -11.34
A4: Test 3.2 | B4: TDD | C4: n8 | D4: CP-OFDM | E4: Table 3,MCS5 | F4: 1T2R | G4: Type B | I4: 100 MHz | J4: DMRS 1+1 | K4: TDLA30-300 | L4: =DerivingPerfReq(N4:W4) -> -12.2 | M4: -11.6 | N4: -14.2 | O4: -12.2 | P4: -13.9 | Q4: -12.4 | R4: -12.9 | S4: -10.4 | T4: -14.2 | U4: -13.3 | V4: -14.9 | W4: -12.9 | X4: =MAX(N4,P4,R4,T4,V4)-MIN(N4,P4,R4,T4,V4) -> 2 | Y4: =MAX(O4,Q4,S4,U4,W4)-MIN(O4,Q4,S4,U4,W4) -> 2.9 | Z4: =AVERAGE(N4,P4,R4,T4,V4) -> -14.02 | AA4: =AVERAGE(O4,Q4,S4,U4,W4) -> -12.24
A5: Test 3.3 | B5: TDD | C5: n8 | D5: CP-OFDM | E5: Table 3,MCS5 | F5: 1T2R | G5: Type B | H5: 120 kHz | I5: 50 MHz | J5: DMRS 1+1 | K5: TDLA30-300 | L5: =DerivingPerfReq(N5:W5) -> -11.2 | M5: -10.6 | N5: -12.4 | O5: -10.4 | P5: -12.8 | Q5: -11.3 | R5: -10.2 | S5: -7.7 | T5: -13.8 | U5: -11.8 | V5: -13.1 | W5: -11.1 | X5: 3.6 | Y5: 4.1 | Z5: -12.46 | AA5: -10.46
A6: Test 3.4 | B6: TDD | C6: n8 | D6: CP-OFDM | E6: Table 3,MCS5 | F6: 1T2R | G6: Type B | I6: 100 MHz | J6: DMRS 1+1 | K6: TDLA30-300 | L6: =DerivingPerfReq(N6:W6) -> -11.7 | M6: -11.1 | N6: -13.3 | O6: -11.3 | P6: -13.4 | Q6: -11.9 | R6: -11.9 | S6: -9.4 | T6: -13.6 | U6: -11.6 | V6: -14 | W6: -12 | X6: 2.1 | Y6: 2.6 | Z6: -13.24 | AA6: -11.24

Sheet FR2 PUSCH low latency
A1: Test | B1: waveform | C1: Tx/Rx | D1: PUSCH mapping type | E1: MCS level | F1: Propagation condition | G1: Symbol length | H1: DMRS | I1: SCS | J1: BW | K1: 38.104 req | L1: 38.141 req | M1: Samsung | O1: Intel | Q1: Nokia | S1: Huawei | U1: Ericsson | W1: SPAN | Y1: AVERAGE
M2: Ideal | N2: Impairment | O2: Ideal | P2: Impairment | Q2: Ideal | R2: Impairment | S2: Ideal | T2: Impairment | U2: Ideal | V2: Impairment | W2: Ideal | X2: Impairment | Y2: Ideal | Z2: Impairment
A3: Test 4.1 | B3: CP-OFDM | C3: 1T2R | D3: Type B | E3: Table 3, MCS5 | F3: TDLA30-300 | G3: 4os | H3: DMRS 1+0 | I3: 60 kHz | J3: 50 MHz | K3: =DerivingPerfReq(M3:V3) -> -4.4 | L3: =IF(K3>-100,K3+0.6,K3) -> -3.8 | M3: -6.4 | N3: -4.4 | O3: -6.5 | P3: -5 | Q3: -6.6 | R3: -4.1 | S3: -5.9 | T3: -3.9 | U3: -6.6 | V3: -4.6 | W3: =MAX(M3,O3,Q3,S3,U3)-MIN(M3,O3,Q3,S3,U3) -> 0.7 | X3: =MAX(N3,P3,R3,T3,V3)-MIN(N3,P3,R3,T3,V3) -> 1.1 | Y3: =AVERAGE(M3,O3,Q3,S3,U3) -> -6.4 | Z3: =AVERAGE(N3,P3,R3,T3,V3) -> -4.4
A4: Test 4.2 | J4: 100 MHz | K4: =DerivingPerfReq(M4:V4) -> -5 | L4: =IF(K4>-100,K4+0.6,K4) -> -4.4 | M4: -6.7 | N4: -4.7 | O4: -6.9 | P4: -5.4 | Q4: -7 | R4: -4.5 | S4: -7.6 | T4: -5.6 | U4: -6.8 | V4: -4.8 | W4: =MAX(M4,O4,Q4,S4,U4)-MIN(M4,O4,Q4,S4,U4) -> 0.9 | X4: =MAX(N4,P4,R4,T4,V4)-MIN(N4,P4,R4,T4,V4) -> 1.1 | Y4: =AVERAGE(M4,O4,Q4,S4,U4) -> -7 | Z4: =AVERAGE(N4,P4,R4,T4,V4) -> -5
A5: Test 4.3 | I5: 120 kHz | J5: 50 MHz | K5: =DerivingPerfReq(M5:V5) -> -4.1 | L5: -3.5 | M5: -6 | N5: -4 | O5: -6.2 | P5: -4.7 | Q5: -6.3 | R5: -3.8 | S5: -6.8 | T5: -4.8 | U5: -5.4 | V5: -3.4 | W5: 1.4 | X5: 1.4 | Y5: -6.14 | Z5: -4.14
A6: Test 4.4 | J6: 100 MHz | K6: =DerivingPerfReq(M6:V6) -> -5.1 | L6: -4.5 | M6: -6.8 | N6: -4.8 | O6: -7 | P6: -5.5 | Q6: -7.1 | R6: -4.6 | S6: -7.6 | T6: -5.6 | U6: -6.9 | V6: -4.9 | W6: 0.8 | X6: 1 | Y6: -7.08 | Z6: -5.08
